[Event "Titled Tuesday Blitz October 31 Late 2023"]
[White "Koellner, Ruben Gideon"]
[Black "Gurevich, Dmitry"]
[WhiteFideId "12993093"]
[BlackFideId "2000407"]
[WhiteElo "2741"]
[BlackElo "2559"]
[Result "1/2-1/2"]
[Round "9"]
[TimeControl "180+1"]
[Date "2023.10.31"]
[WhiteClock "0:00:09"]
[BlackClock "0:00:05"]
[Board "22"]

1. d4 {[%clk 0:02:37]}  d5 {[%clk 0:02:56]} 2. Nf3 {[%clk 0:02:37]}  e6 {[%clk 0:02:55]} 3. e3 {[%clk 0:02:37]}  c5 {[%clk 0:02:53]} 4. c3 {[%clk 0:02:37]}  Nc6 {[%clk 0:02:52]} 5. Nbd2 {[%clk 0:02:36]}  Nf6 {[%clk 0:02:51]} 6. Bd3 {[%clk 0:02:36]}  Qc7 {[%clk 0:02:47]} 7. O-O {[%clk 0:02:36]}  b6 {[%clk 0:02:46]} 8. e4 {[%clk 0:02:31]}  cxd4 {[%clk 0:02:43]} 9. cxd4 {[%clk 0:02:30]}  Nb4 {[%clk 0:02:21]} 10. Bb5+ {[%clk 0:02:25]}  Bd7 {[%clk 0:02:19]} 11. Bxd7+ {[%clk 0:02:25]}  Nxd7 {[%clk 0:02:18]} 12. e5 {[%clk 0:02:19]}  Qc2 {[%clk 0:02:13]} 13. a3 {[%clk 0:02:06]}  Qxd1 {[%clk 0:02:11]} 14. Rxd1 {[%clk 0:02:06]}  Nc6 {[%clk 0:01:56]} 15. Nb3 {[%clk 0:02:00]}  Be7 {[%clk 0:01:54]} 16. Be3 {[%clk 0:01:57]}  O-O-O {[%clk 0:01:52]} 17. Bg5 {[%clk 0:01:50]}  Bxg5 {[%clk 0:01:47]} 18. Nxg5 {[%clk 0:01:51]}  Rdf8 {[%clk 0:01:45]} 19. Rac1 {[%clk 0:01:49]}  Kb7 {[%clk 0:01:44]} 20. Rc3 {[%clk 0:01:50]}  h6 {[%clk 0:01:42]} 21. Nh3 {[%clk 0:01:19]}  Rc8 {[%clk 0:01:30]} 22. Nf4 {[%clk 0:01:18]}  g6 {[%clk 0:01:20]} 23. Rf3 {[%clk 0:01:15]}  Rc7 {[%clk 0:01:14]} 24. Nd3 {[%clk 0:01:12]}  Ndb8 {[%clk 0:01:11]} 25. g4 {[%clk 0:01:13]}  h5 {[%clk 0:01:07]} 26. Rh3 {[%clk 0:01:12]}  Rcc8 {[%clk 0:01:04]} 27. gxh5 {[%clk 0:01:10]}  Rxh5 {[%clk 0:00:57]} 28. Rxh5 {[%clk 0:01:10]}  gxh5 {[%clk 0:00:58]} 29. Kh1 {[%clk 0:01:06]}  Na5 {[%clk 0:00:57]} 30. Nxa5+ {[%clk 0:01:04]}  bxa5 {[%clk 0:00:57]} 31. Nc5+ {[%clk 0:01:01]}  Kc6 {[%clk 0:00:52]} 32. Rc1 {[%clk 0:00:59]}  Kb5 {[%clk 0:00:43]} 33. a4+ {[%clk 0:00:59]}  Kb6 {[%clk 0:00:41]} 34. Nd7+ {[%clk 0:00:57]}  Kb7 {[%clk 0:00:41]} 35. Rxc8 {[%clk 0:00:52]}  Kxc8 {[%clk 0:00:40]} 36. Nc5 {[%clk 0:00:53]}  Nc6 {[%clk 0:00:36]} 37. Nb3 {[%clk 0:00:53]}  Kb7 {[%clk 0:00:32]} 38. Kg2 {[%clk 0:00:53]}  Kb6 {[%clk 0:00:32]} 39. Kf3 {[%clk 0:00:51]}  Nb4 {[%clk 0:00:32]} 40. Kf4 {[%clk 0:00:47]}  Nd3+ {[%clk 0:00:31]} 41. Kg5 {[%clk 0:00:48]}  Nxb2 {[%clk 0:00:28]} 42. Kxh5 {[%clk 0:00:42]}  Nxa4 {[%clk 0:00:27]} 43. Kg5 {[%clk 0:00:42]}  Nc3 {[%clk 0:00:27]} 44. f3 {[%clk 0:00:40]}  a4 {[%clk 0:00:26]} 45. Na1 {[%clk 0:00:41]}  Ne2 {[%clk 0:00:20]} 46. Nc2 {[%clk 0:00:20]}  a3 {[%clk 0:00:13]} 47. Nxa3 {[%clk 0:00:14]}  Nxd4 {[%clk 0:00:12]} 48. h4 {[%clk 0:00:15]}  Nxf3+ {[%clk 0:00:12]} 49. Kf6 {[%clk 0:00:11]}  Nxh4 {[%clk 0:00:11]} 50. Kxf7 {[%clk 0:00:11]}  Nf3 {[%clk 0:00:09]} 51. Kxe6 {[%clk 0:00:12]}  Nxe5 {[%clk 0:00:09]} 52. Kxe5 {[%clk 0:00:12]}  Kc5 {[%clk 0:00:09]} 53. Kf4 {[%clk 0:00:08]}  Kd4 {[%clk 0:00:09]} 54. Nb5+ {[%clk 0:00:07]}  Kd3 {[%clk 0:00:07]} 55. Nxa7 {[%clk 0:00:07]}  d4 {[%clk 0:00:08]} 56. Nc6 {[%clk 0:00:08]}  Kc3 {[%clk 0:00:06]} 57. Ne5 {[%clk 0:00:07]}  d3 {[%clk 0:00:06]} 58. Nf3 {[%clk 0:00:08]}  d2 {[%clk 0:00:05]} 59. Nxd2 {[%clk 0:00:09]} 1/2-1/2


[Site "https://www.chess.com"]

[Event "Titled Tuesday Blitz October 31 Late 2023"]
[White "Bartel, Michal"]
[Black "Mekhitarian, Krikor Sevag"]
[WhiteFideId "1119257"]
[BlackFideId "2107660"]
[WhiteElo "2614"]
[BlackElo "2750"]
[Result "1/2-1/2"]
[Round "9"]
[TimeControl "180+1"]
[Date "2023.10.31"]
[WhiteClock "0:00:44"]
[BlackClock "0:00:08"]
[Board "24"]

1. e4 {[%clk 0:02:57]}  e6 {[%clk 0:02:59]} 2. d4 {[%clk 0:02:55]}  d5 {[%clk 0:02:59]} 3. Nc3 {[%clk 0:02:56]}  Nf6 {[%clk 0:02:59]} 4. e5 {[%clk 0:02:56]}  Nfd7 {[%clk 0:02:59]} 5. Nce2 {[%clk 0:02:57]}  c5 {[%clk 0:02:58]} 6. c3 {[%clk 0:02:58]}  Nc6 {[%clk 0:02:58]} 7. Nf3 {[%clk 0:02:58]}  Be7 {[%clk 0:02:52]} 8. g3 {[%clk 0:02:58]}  Qa5 {[%clk 0:02:34]} 9. Bd2 {[%clk 0:02:57]}  Qb6 {[%clk 0:02:31]} 10. b3 {[%clk 0:02:56]}  cxd4 {[%clk 0:02:18]} 11. cxd4 {[%clk 0:02:57]}  f6 {[%clk 0:02:19]} 12. Nf4 {[%clk 0:02:51]}  Nxd4 {[%clk 0:01:49]} 13. Nxd4 {[%clk 0:01:50]}  Qxd4 {[%clk 0:01:49]} 14. Be2 {[%clk 0:01:42]}  Nxe5 {[%clk 0:01:36]} 15. O-O {[%clk 0:01:39]}  O-O {[%clk 0:01:36]} 16. Rc1 {[%clk 0:01:38]}  Bd6 {[%clk 0:01:13]} 17. Rxc8 {[%clk 0:01:35]}  Rfxc8 {[%clk 0:01:14]} 18. Nxe6 {[%clk 0:01:36]}  Qe4 {[%clk 0:00:56]} 19. Bf4 {[%clk 0:01:21]}  Kh8 {[%clk 0:00:41]} 20. Re1 {[%clk 0:01:14]}  Qf5 {[%clk 0:00:29]} 21. Qxd5 {[%clk 0:01:11]}  Bb4 {[%clk 0:00:25]} 22. Rd1 {[%clk 0:01:05]}  Qc2 {[%clk 0:00:19]} 23. Bf1 {[%clk 0:00:52]}  Qc6 {[%clk 0:00:17]} 24. Bxe5 {[%clk 0:00:40]}  Qxd5 {[%clk 0:00:15]} 25. Rxd5 {[%clk 0:00:41]}  fxe5 {[%clk 0:00:15]} 26. Rxe5 {[%clk 0:00:39]}  Re8 {[%clk 0:00:13]} 27. Bc4 {[%clk 0:00:36]}  Rac8 {[%clk 0:00:09]} 28. Rb5 {[%clk 0:00:33]}  Bd6 {[%clk 0:00:06]} 29. Ng5 {[%clk 0:00:20]}  Re7 {[%clk 0:00:02]} 30. Nf7+ {[%clk 0:00:19]}  Rxf7 {[%clk 0:00:02]} 31. Bxf7 {[%clk 0:00:20]}  b6 {[%clk 0:00:03]} 32. Rd5 {[%clk 0:00:20]}  Bc5 {[%clk 0:00:03]} 33. Be6 {[%clk 0:00:20]}  Rf8 {[%clk 0:00:04]} 34. Rd2 {[%clk 0:00:20]}  g6 {[%clk 0:00:04]} 35. Kg2 {[%clk 0:00:20]}  Rf6 {[%clk 0:00:04]} 36. Bc4 {[%clk 0:00:20]}  Kg7 {[%clk 0:00:04]} 37. f4 {[%clk 0:00:20]}  Rd6 {[%clk 0:00:04]} 38. Rxd6 {[%clk 0:00:20]}  Bxd6 {[%clk 0:00:05]} 39. Kf3 {[%clk 0:00:21]}  Bc5 {[%clk 0:00:05]} 40. Ke4 {[%clk 0:00:21]}  Kf6 {[%clk 0:00:06]} 41. h3 {[%clk 0:00:21]}  h6 {[%clk 0:00:06]} 42. g4 {[%clk 0:00:22]}  g5 {[%clk 0:00:07]} 43. f5 {[%clk 0:00:22]}  a5 {[%clk 0:00:06]} 44. Kd5 {[%clk 0:00:22]}  Bf2 {[%clk 0:00:06]} 45. Kc6 {[%clk 0:00:23]}  Be3 {[%clk 0:00:05]} 46. Kb5 {[%clk 0:00:23]}  Bf2 {[%clk 0:00:04]} 47. a3 {[%clk 0:00:24]}  Be3 {[%clk 0:00:04]} 48. Kc6 {[%clk 0:00:24]}  Bf2 {[%clk 0:00:03]} 49. Kd5 {[%clk 0:00:25]}  Be3 {[%clk 0:00:03]} 50. Bd3 {[%clk 0:00:25]}  Bc5 {[%clk 0:00:03]} 51. a4 {[%clk 0:00:24]}  Bb4 {[%clk 0:00:03]} 52. Kc6 {[%clk 0:00:25]}  Bc5 {[%clk 0:00:04]} 53. Kd7 {[%clk 0:00:25]}  Bb4 {[%clk 0:00:04]} 54. Ke8 {[%clk 0:00:26]}  Bc5 {[%clk 0:00:04]} 55. Kd7 {[%clk 0:00:27]}  Bb4 {[%clk 0:00:05]} 56. Kc6 {[%clk 0:00:28]}  Bc5 {[%clk 0:00:05]} 57. Kd5 {[%clk 0:00:28]}  Bb4 {[%clk 0:00:06]} 58. Ke4 {[%clk 0:00:29]}  Bc5 {[%clk 0:00:06]} 59. Kf3 {[%clk 0:00:30]}  Bb4 {[%clk 0:00:06]} 60. Kg3 {[%clk 0:00:31]}  Bc5 {[%clk 0:00:06]} 61. h4 {[%clk 0:00:31]}  Bd6+ {[%clk 0:00:07]} 62. Kh3 {[%clk 0:00:31]}  Bb4 {[%clk 0:00:07]} 63. h5 {[%clk 0:00:30]}  Bc5 {[%clk 0:00:08]} 64. Kg2 {[%clk 0:00:31]}  Bb4 {[%clk 0:00:08]} 65. Kf3 {[%clk 0:00:32]}  Bc5 {[%clk 0:00:09]} 66. Ke4 {[%clk 0:00:33]}  Bb4 {[%clk 0:00:10]} 67. Kd5 {[%clk 0:00:34]}  Bc5 {[%clk 0:00:10]} 68. Kc6 {[%clk 0:00:34]}  Ke5 {[%clk 0:00:09]} 69. Bc4 {[%clk 0:00:34]}  Kf6 {[%clk 0:00:09]} 70. Kd5 {[%clk 0:00:33]}  Bb4 {[%clk 0:00:09]} 71. Bd3 {[%clk 0:00:34]}  Bc5 {[%clk 0:00:09]} 72. Kc6 {[%clk 0:00:34]}  Ke5 {[%clk 0:00:08]} 73. Kd7 {[%clk 0:00:34]}  Kf6 {[%clk 0:00:09]} 74. Bc4 {[%clk 0:00:33]}  Ke5 {[%clk 0:00:07]} 75. Ke8 {[%clk 0:00:33]}  Kf6 {[%clk 0:00:07]} 76. Bd3 {[%clk 0:00:33]}  Bb4 {[%clk 0:00:08]} 77. Bc2 {[%clk 0:00:34]}  Bc5 {[%clk 0:00:08]} 78. Kd7 {[%clk 0:00:34]}  Bb4 {[%clk 0:00:09]} 79. Kc7 {[%clk 0:00:35]}  Bc5 {[%clk 0:00:10]} 80. Kc6 {[%clk 0:00:35]}  Ke5 {[%clk 0:00:09]} 81. Kb5 {[%clk 0:00:36]}  Kf6 {[%clk 0:00:06]} 82. Kc4 {[%clk 0:00:36]}  Ke5 {[%clk 0:00:06]} 83. Bd1 {[%clk 0:00:37]}  Kf6 {[%clk 0:00:06]} 84. Be2 {[%clk 0:00:37]}  Ke5 {[%clk 0:00:06]} 85. Bf3 {[%clk 0:00:38]}  Kf6 {[%clk 0:00:07]} 86. Kd5 {[%clk 0:00:38]}  Bb4 {[%clk 0:00:07]} 87. Be4 {[%clk 0:00:38]}  Bc5 {[%clk 0:00:07]} 88. Kc4 {[%clk 0:00:39]}  Ke5 {[%clk 0:00:07]} 89. Bc2 {[%clk 0:00:39]}  Kf6 {[%clk 0:00:07]} 90. Kb5 {[%clk 0:00:40]}  Ke5 {[%clk 0:00:07]} 91. Kc6 {[%clk 0:00:40]}  Kf6 {[%clk 0:00:08]} 92. Kb5 {[%clk 0:00:40]}  Ke5 {[%clk 0:00:08]} 93. Kc4 {[%clk 0:00:41]}  Kf6 {[%clk 0:00:08]} 94. b4 {[%clk 0:00:41]}  Bxb4 {[%clk 0:00:07]} 95. Kd5 {[%clk 0:00:41]}  Bc5 {[%clk 0:00:08]} 96. Bd3 {[%clk 0:00:41]}  Bb4 {[%clk 0:00:08]} 97. Bb5 {[%clk 0:00:42]}  Bc5 {[%clk 0:00:08]} 98. Bc6 {[%clk 0:00:42]}  Bg1 {[%clk 0:00:08]} 99. Bb5 {[%clk 0:00:43]}  Bc5 {[%clk 0:00:09]} 100. Bc6 {[%clk 0:00:44]}  Bb4 {[%clk 0:00:09]} 101. Bb5 {[%clk 0:00:44]}  Bc5 {[%clk 0:00:08]} 1/2-1/2


[Site "https://www.chess.com"]

[Event "Titled Tuesday Blitz October 31 Late 2023"]
[White "Korchmar, Vasiliy"]
[Black "Krishnan, Varun"]
[WhiteFideId "24131750"]
[BlackFideId "5054508"]
[WhiteElo "2741"]
[BlackElo "2611"]
[Result "1/2-1/2"]
[Round "9"]
[TimeControl "180+1"]
[Date "2023.10.31"]
[WhiteClock "0:00:26"]
[BlackClock "0:00:12"]
[Board "25"]

1. e4 {[%clk 0:03:00]}  c5 {[%clk 0:02:53]} 2. d4 {[%clk 0:03:00]}  cxd4 {[%clk 0:02:51]} 3. Qxd4 {[%clk 0:03:00]}  Nc6 {[%clk 0:02:50]} 4. Qd3 {[%clk 0:03:01]}  g6 {[%clk 0:02:34]} 5. Nc3 {[%clk 0:03:01]}  Bg7 {[%clk 0:02:34]} 6. Nf3 {[%clk 0:03:02]}  d6 {[%clk 0:02:33]} 7. Be2 {[%clk 0:03:02]}  Nf6 {[%clk 0:02:32]} 8. O-O {[%clk 0:03:03]}  O-O {[%clk 0:02:32]} 9. Nd5 {[%clk 0:03:03]}  Nxd5 {[%clk 0:02:27]} 10. exd5 {[%clk 0:03:04]}  Ne5 {[%clk 0:02:23]} 11. Nxe5 {[%clk 0:03:03]}  Bxe5 {[%clk 0:02:22]} 12. c3 {[%clk 0:03:04]}  Bg7 {[%clk 0:02:21]} 13. Bg5 {[%clk 0:03:04]}  Re8 {[%clk 0:02:07]} 14. Rfe1 {[%clk 0:03:02]}  Bd7 {[%clk 0:02:03]} 15. h4 {[%clk 0:02:58]}  h5 {[%clk 0:01:55]} 16. Bf3 {[%clk 0:02:55]}  Bf5 {[%clk 0:01:45]} 17. Qe3 {[%clk 0:02:51]}  Bf6 {[%clk 0:01:38]} 18. a4 {[%clk 0:02:23]}  b6 {[%clk 0:01:25]} 19. Qf4 {[%clk 0:02:07]}  Qd7 {[%clk 0:01:21]} 20. a5 {[%clk 0:02:04]}  bxa5 {[%clk 0:01:20]} 21. Rxa5 {[%clk 0:02:04]}  Rab8 {[%clk 0:01:17]} 22. Qe3 {[%clk 0:01:49]}  Bxg5 {[%clk 0:01:10]} 23. hxg5 {[%clk 0:01:50]}  Rxb2 {[%clk 0:01:09]} 24. Rxa7 {[%clk 0:01:49]}  Rb7 {[%clk 0:01:09]} 25. Rea1 {[%clk 0:01:47]}  Reb8 {[%clk 0:00:59]} 26. Qd4 {[%clk 0:01:47]}  Qc7 {[%clk 0:00:50]} 27. c4 {[%clk 0:01:46]}  Bc8 {[%clk 0:00:29]} 28. R1a6 {[%clk 0:01:28]}  Qd7 {[%clk 0:00:24]} 29. Kh2 {[%clk 0:00:51]}  Qf5 {[%clk 0:00:24]} 30. Rxb7 {[%clk 0:00:47]}  Bxb7 {[%clk 0:00:20]} 31. Rb6 {[%clk 0:00:45]}  Qxg5 {[%clk 0:00:20]} 32. Qb2 {[%clk 0:00:39]}  Qf4+ {[%clk 0:00:11]} 33. Kg1 {[%clk 0:00:38]}  Qxc4 {[%clk 0:00:11]} 34. Rxb7 {[%clk 0:00:38]}  Rxb7 {[%clk 0:00:11]} 35. Qxb7 {[%clk 0:00:38]}  Qc1+ {[%clk 0:00:12]} 36. Kh2 {[%clk 0:00:39]}  Qf4+ {[%clk 0:00:12]} 37. Kh3 {[%clk 0:00:39]}  Qf5+ {[%clk 0:00:13]} 38. Kg3 {[%clk 0:00:36]}  Qg5+ {[%clk 0:00:13]} 39. Kh3 {[%clk 0:00:31]}  Qf5+ {[%clk 0:00:13]} 40. Kh4 {[%clk 0:00:30]}  Qf4+ {[%clk 0:00:13]} 41. Kh3 {[%clk 0:00:26]}  Qf5+ {[%clk 0:00:12]} 1/2-1/2


[Site "https://www.chess.com"]

[Event "Titled Tuesday Blitz October 31 Late 2023"]
[White "Ibadov, Dashgyn"]
[Black "Alex_Sahakyan2006"]
[WhiteFideId "24107514"]
[WhiteElo "2607"]
[BlackElo "2740"]
[Result "1-0"]
[Round "9"]
[TimeControl "180+1"]
[Date "2023.10.31"]
[WhiteClock "0:01:36"]
[BlackClock "0:01:03"]
[Board "26"]

1. e4 {[%clk 0:03:00]}  Nc6 {[%clk 0:02:57]} 2. Nf3 {[%clk 0:02:58]}  d6 {[%clk 0:02:57]} 3. d4 {[%clk 0:02:58]}  Nf6 {[%clk 0:02:58]} 4. Nc3 {[%clk 0:02:57]}  g6 {[%clk 0:02:58]} 5. h3 {[%clk 0:02:51]}  Bg7 {[%clk 0:02:59]} 6. Be3 {[%clk 0:02:51]}  O-O {[%clk 0:02:59]} 7. Qd2 {[%clk 0:02:52]}  a6 {[%clk 0:03:00]} 8. Bh6 {[%clk 0:02:49]}  b5 {[%clk 0:03:01]} 9. Bd3 {[%clk 0:02:48]}  e5 {[%clk 0:03:00]} 10. d5 {[%clk 0:02:43]}  Nd4 {[%clk 0:02:59]} 11. a4 {[%clk 0:02:41]}  Nxf3+ {[%clk 0:02:58]} 12. gxf3 {[%clk 0:02:42]}  b4 {[%clk 0:02:56]} 13. Ne2 {[%clk 0:02:41]}  b3 {[%clk 0:02:52]} 14. cxb3 {[%clk 0:02:37]}  Nh5 {[%clk 0:02:49]} 15. O-O-O {[%clk 0:02:24]}  Rb8 {[%clk 0:02:46]} 16. Bc4 {[%clk 0:02:23]}  Bf6 {[%clk 0:02:34]} 17. Rhg1 {[%clk 0:02:15]}  Re8 {[%clk 0:02:33]} 18. Kb1 {[%clk 0:02:14]}  Kh8 {[%clk 0:02:33]} 19. Ka2 {[%clk 0:02:13]}  Bxh3 {[%clk 0:02:21]} 20. f4 {[%clk 0:01:52]}  exf4 {[%clk 0:02:19]} 21. Nxf4 {[%clk 0:01:52]}  Nxf4 {[%clk 0:02:19]} 22. Qxf4 {[%clk 0:01:53]}  Bd7 {[%clk 0:02:12]} 23. Rh1 {[%clk 0:01:48]}  Qe7 {[%clk 0:02:03]} 24. Qh2 {[%clk 0:01:48]}  Qe5 {[%clk 0:01:39]} 25. f4 {[%clk 0:01:43]}  Qxe4 {[%clk 0:01:39]} 26. Bg5 {[%clk 0:01:39]}  h5 {[%clk 0:01:16]} 27. Bxf6+ {[%clk 0:01:38]}  Kg8 {[%clk 0:01:14]} 28. Qxh5 {[%clk 0:01:35]}  gxh5 {[%clk 0:01:03]} 29. Rxh5 {[%clk 0:01:36]} 1-0


[Site "https://www.chess.com"]

[Event "Titled Tuesday Blitz October 31 Late 2023"]
[White "Roberson, Peter T"]
[Black "Gedajlovic, Max"]
[WhiteFideId "412384"]
[BlackFideId "2616840"]
[WhiteElo "2602"]
[BlackElo "2730"]
[Result "0-1"]
[Round "9"]
[TimeControl "180+1"]
[Date "2023.10.31"]
[WhiteClock "0:00:19"]
[BlackClock "0:01:03"]
[Board "27"]

1. e4 {[%clk 0:03:00]}  e6 {[%clk 0:02:59]} 2. d4 {[%clk 0:03:00]}  d5 {[%clk 0:03:00]} 3. e5 {[%clk 0:03:01]}  c5 {[%clk 0:03:00]} 4. c3 {[%clk 0:03:01]}  Qb6 {[%clk 0:03:00]} 5. Nf3 {[%clk 0:03:02]}  Bd7 {[%clk 0:03:00]} 6. Be2 {[%clk 0:02:48]}  Bb5 {[%clk 0:03:00]} 7. dxc5 {[%clk 0:02:43]}  Bxc5 {[%clk 0:02:59]} 8. b4 {[%clk 0:02:44]}  Bxf2+ {[%clk 0:02:31]} 9. Kf1 {[%clk 0:02:43]}  Bc6 {[%clk 0:02:31]} 10. Qd2 {[%clk 0:02:25]}  Nh6 {[%clk 0:02:16]} 11. Qg5 {[%clk 0:02:08]}  Nf5 {[%clk 0:02:08]} 12. a4 {[%clk 0:01:38]}  Be3 {[%clk 0:01:56]} 13. Bxe3 {[%clk 0:01:25]}  Nxe3+ {[%clk 0:01:51]} 14. Ke1 {[%clk 0:01:23]}  Nc2+ {[%clk 0:01:51]} 15. Kd2 {[%clk 0:01:23]}  Nxa1 {[%clk 0:01:51]} 16. Qxg7 {[%clk 0:01:23]}  Rf8 {[%clk 0:01:49]} 17. Ng5 {[%clk 0:01:21]}  Nd7 {[%clk 0:01:49]} 18. Nxh7 {[%clk 0:01:21]}  Nb3+ {[%clk 0:01:42]} 19. Kc2 {[%clk 0:01:17]}  Bxa4 {[%clk 0:01:38]} 20. Nxf8 {[%clk 0:01:12]}  Nxf8 {[%clk 0:01:39]} 21. Rf1 {[%clk 0:01:09]}  O-O-O {[%clk 0:01:33]} 22. Rxf7 {[%clk 0:01:03]}  Nd7 {[%clk 0:01:18]} 23. Kb2 {[%clk 0:00:47]}  Qe3 {[%clk 0:01:15]} 24. Bg4 {[%clk 0:00:19]}  Qc1+ {[%clk 0:01:06]} 25. Ka2 {[%clk 0:00:19]}  Qc2+ {[%clk 0:01:06]} 26. Ka3 {[%clk 0:00:20]}  Qxb1 {[%clk 0:01:04]} 27. Kxa4 {[%clk 0:00:21]}  Qa2+ {[%clk 0:01:03]} 28. Kb5 {[%clk 0:00:19]}  Qa6# {[%clk 0:01:03]} 0-1


[Site "https://www.chess.com"]

[Event "Titled Tuesday Blitz October 31 Late 2023"]
[White "Blanco Ronquillo, Humberto L."]
[Black "NelsonLinda"]
[WhiteFideId "3504239"]
[WhiteElo "2727"]
[BlackElo "2594"]
[Result "1/2-1/2"]
[Round "9"]
[TimeControl "180+1"]
[Date "2023.10.31"]
[WhiteClock "0:00:05"]
[BlackClock "0:00:06"]
[Board "28"]

1. e4 {[%clk 0:03:00]}  c5 {[%clk 0:02:57]} 2. c3 {[%clk 0:03:00]}  Nf6 {[%clk 0:02:56]} 3. e5 {[%clk 0:03:00]}  Nd5 {[%clk 0:02:57]} 4. d4 {[%clk 0:03:00]}  cxd4 {[%clk 0:02:58]} 5. Nf3 {[%clk 0:03:01]}  e6 {[%clk 0:02:59]} 6. cxd4 {[%clk 0:03:01]}  d6 {[%clk 0:02:59]} 7. Bc4 {[%clk 0:03:01]}  Be7 {[%clk 0:02:59]} 8. O-O {[%clk 0:02:57]}  O-O {[%clk 0:02:59]} 9. a3 {[%clk 0:02:55]}  b6 {[%clk 0:02:48]} 10. Bxd5 {[%clk 0:02:54]}  exd5 {[%clk 0:02:49]} 11. Nc3 {[%clk 0:02:53]}  Be6 {[%clk 0:02:48]} 12. Bf4 {[%clk 0:02:49]}  Nc6 {[%clk 0:02:44]} 13. Rc1 {[%clk 0:02:44]}  Rc8 {[%clk 0:02:43]} 14. Nb5 {[%clk 0:02:34]}  dxe5 {[%clk 0:02:39]} 15. dxe5 {[%clk 0:02:35]}  Bg4 {[%clk 0:02:32]} 16. h3 {[%clk 0:02:26]}  Bh5 {[%clk 0:02:29]} 17. Re1 {[%clk 0:01:59]}  Re8 {[%clk 0:02:11]} 18. Qb3 {[%clk 0:01:45]}  Bc5 {[%clk 0:02:04]} 19. Rcd1 {[%clk 0:01:30]}  Bxf3 {[%clk 0:01:40]} 20. Qxf3 {[%clk 0:01:29]}  d4 {[%clk 0:01:41]} 21. b4 {[%clk 0:01:26]}  Bf8 {[%clk 0:01:38]} 22. Nd6 {[%clk 0:01:13]}  Bxd6 {[%clk 0:01:17]} 23. exd6 {[%clk 0:01:14]}  Qd7 {[%clk 0:00:57]} 24. Qd5 {[%clk 0:01:11]}  a6 {[%clk 0:00:42]} 25. Rxe8+ {[%clk 0:00:48]}  Rxe8 {[%clk 0:00:40]} 26. Rc1 {[%clk 0:00:49]}  Rc8 {[%clk 0:00:24]} 27. a4 {[%clk 0:00:46]}  h6 {[%clk 0:00:18]} 28. b5 {[%clk 0:00:45]}  axb5 {[%clk 0:00:18]} 29. axb5 {[%clk 0:00:46]}  Nb8 {[%clk 0:00:19]} 30. Rc7 {[%clk 0:00:42]}  Rxc7 {[%clk 0:00:16]} 31. dxc7 {[%clk 0:00:43]}  Qxd5 {[%clk 0:00:17]} 32. cxb8=Q+ {[%clk 0:00:44]}  Kh7 {[%clk 0:00:17]} 33. Qe5 {[%clk 0:00:44]}  Qc4 {[%clk 0:00:11]} 34. Qf5+ {[%clk 0:00:40]}  Kg8 {[%clk 0:00:10]} 35. Qe4 {[%clk 0:00:22]}  Qxb5 {[%clk 0:00:04]} 36. Qxd4 {[%clk 0:00:21]}  Qc6 {[%clk 0:00:04]} 37. Bd2 {[%clk 0:00:17]}  b5 {[%clk 0:00:03]} 38. Bc3 {[%clk 0:00:17]}  f6 {[%clk 0:00:03]} 39. h4 {[%clk 0:00:17]}  Qe8 {[%clk 0:00:02]} 40. g3 {[%clk 0:00:15]}  Qc6 {[%clk 0:00:01]} 41. h5 {[%clk 0:00:14]}  Kh7 {[%clk 0:00:02]} 42. Qd3+ {[%clk 0:00:13]}  Kg8 {[%clk 0:00:02]} 43. Qe3 {[%clk 0:00:14]}  Qd7 {[%clk 0:00:02]} 44. Qf3 {[%clk 0:00:12]}  Qe8 {[%clk 0:00:02]} 45. Qd5+ {[%clk 0:00:11]}  Kh8 {[%clk 0:00:02]} 46. Kg2 {[%clk 0:00:11]}  Qb8 {[%clk 0:00:02]} 47. Bb4 {[%clk 0:00:11]}  Qe8 {[%clk 0:00:02]} 48. Bd6 {[%clk 0:00:11]}  Qd7 {[%clk 0:00:02]} 49. Qc5 {[%clk 0:00:11]}  Kh7 {[%clk 0:00:02]} 50. Bf4 {[%clk 0:00:11]}  Qe8 {[%clk 0:00:02]} 51. Qc2+ {[%clk 0:00:11]}  Kh8 {[%clk 0:00:02]} 52. Qg6 {[%clk 0:00:12]}  Qd7 {[%clk 0:00:02]} 53. Qe4 {[%clk 0:00:11]}  Kg8 {[%clk 0:00:01]} 54. Qa8+ {[%clk 0:00:10]}  Kh7 {[%clk 0:00:02]} 55. Qb8 {[%clk 0:00:11]}  Qe7 {[%clk 0:00:01]} 56. Qxb5 {[%clk 0:00:10]}  Qe4+ {[%clk 0:00:02]} 57. Kg1 {[%clk 0:00:09]}  Qc2 {[%clk 0:00:02]} 58. Qf1 {[%clk 0:00:09]}  Qe4 {[%clk 0:00:02]} 59. Qc1 {[%clk 0:00:09]}  Qf5 {[%clk 0:00:02]} 60. Qd1 {[%clk 0:00:10]}  Qe4 {[%clk 0:00:02]} 61. Qg4 {[%clk 0:00:09]}  Qb1+ {[%clk 0:00:02]} 62. Kg2 {[%clk 0:00:09]}  Qe4+ {[%clk 0:00:03]} 63. Kh2 {[%clk 0:00:10]}  Qc2 {[%clk 0:00:03]} 64. Kg1 {[%clk 0:00:08]}  Qb1+ {[%clk 0:00:03]} 65. Kg2 {[%clk 0:00:08]}  Qe4+ {[%clk 0:00:03]} 66. Qf3 {[%clk 0:00:08]}  Qf5 {[%clk 0:00:04]} 67. Be3 {[%clk 0:00:09]}  Qc2 {[%clk 0:00:04]} 68. g4 {[%clk 0:00:09]}  Kh8 {[%clk 0:00:04]} 69. Qf5 {[%clk 0:00:09]}  Qb3 {[%clk 0:00:04]} 70. Kg3 {[%clk 0:00:10]}  Qc4 {[%clk 0:00:04]} 71. Qd7 {[%clk 0:00:09]}  Kh7 {[%clk 0:00:04]} 72. Qe8 {[%clk 0:00:08]}  Qa2 {[%clk 0:00:04]} 73. Qg6+ {[%clk 0:00:08]}  Kh8 {[%clk 0:00:04]} 74. Qe4 {[%clk 0:00:09]}  Qf7 {[%clk 0:00:04]} 75. Kf3 {[%clk 0:00:09]}  Qa2 {[%clk 0:00:04]} 76. Qe8+ {[%clk 0:00:09]}  Kh7 {[%clk 0:00:04]} 77. Qg6+ {[%clk 0:00:10]}  Kh8 {[%clk 0:00:04]} 78. Bxh6 {[%clk 0:00:10]}  Qa8+ {[%clk 0:00:04]} 79. Kg3 {[%clk 0:00:10]}  gxh6 {[%clk 0:00:04]} 80. Qxh6+ {[%clk 0:00:11]}  Kg8 {[%clk 0:00:05]} 81. Qg6+ {[%clk 0:00:11]}  Kh8 {[%clk 0:00:05]} 82. Qxf6+ {[%clk 0:00:12]}  Kh7 {[%clk 0:00:06]} 83. g5 {[%clk 0:00:12]}  Qh1 {[%clk 0:00:04]} 84. g6+ {[%clk 0:00:10]}  Kh6 {[%clk 0:00:05]} 85. g7+ {[%clk 0:00:11]}  Kxh5 {[%clk 0:00:04]} 86. Qf7+ {[%clk 0:00:08]}  Kh6 {[%clk 0:00:04]} 87. g8=Q {[%clk 0:00:06]}  Qg1+ {[%clk 0:00:05]} 88. Kf3 {[%clk 0:00:07]}  Qd1+ {[%clk 0:00:05]} 89. Ke4 {[%clk 0:00:07]}  Qc2+ {[%clk 0:00:05]} 90. Kf3 {[%clk 0:00:07]}  Qd1+ {[%clk 0:00:05]} 91. Kg2 {[%clk 0:00:08]}  Qg4+ {[%clk 0:00:03]} 92. Kf1 {[%clk 0:00:08]}  Qd1+ {[%clk 0:00:04]} 93. Kg2 {[%clk 0:00:08]}  Qg4+ {[%clk 0:00:04]} 94. Kh2 {[%clk 0:00:04]}  Qh4+ {[%clk 0:00:05]} 95. Kg1 {[%clk 0:00:04]}  Qg4+ {[%clk 0:00:05]} 96. Kh1 {[%clk 0:00:05]}  Qh4+ {[%clk 0:00:06]} 97. Kg1 {[%clk 0:00:05]}  Qg4+ {[%clk 0:00:06]} 98. Qxg4 {[%clk 0:00:05]} 1/2-1/2


[Site "https://www.chess.com"]